bitfinex/quotes_ETHUSD_20220212
["timestamp","ask_amount","ask_price","bid_price","bid_amount"]
[1644710128477,0.00399209,2920.6,2919.7,6.3194]
[1644710128478,3.50399209,2920.6,2919.7,0.6254]
[1644710128673,0.1711,2920.5,2919.3,0.6246]
[1644710128975,0.01415838,2920.6,2919.3,0.8029]
[1644710128976,0.00399209,2920.4,2919.3,0.8029]
[1644710129177,0.01415838,2920.6,2919.4,0.1344]
[1644710129375,1.08393531,2920.2,2919.4,0.1376]
[1644710129576,0.00399209,2920.1,2919.7,0.85594]
[1644710129776,0.01036253,2920.1,2919.7,0.85594]
[1644710129975,0.00637044,2920.1,2919.7,1.95094]
[1644710130177,0.00637044,2920.1,2919.8,0.1304]
[1644710130381,0.00637044,2920.1,2919.9,0.6661]
[1644710130576,0.00637044,2920.1,2919.9,2.80804]
[1644710130780,0.85568306,2920.8,2919.9,1.2661]
[1644710130980,0.00637044,2920.1,2919.9,1.3949]
[1644710131177,0.00637044,2920.1,2919.9,1.3941]
[1644710131377,0.00637044,2920.1,2919.9,1.2661]
[1644710131979,0.00399209,2920.7,2919.9,0.495]
[1644710132229,0.01019306,2920.1,2919.9,0.495]
[1644710133331,0.0011087,2920.3,2919.9,0.495]
[1644710133530,0.00206787,2920.6,2919.9,0.795]
[1644710133829,0.00206787,2920.6,2919.9,0.495]
[1644710134432,0.00399209,2920.7,2919.9,0.495]
[1644710135028,0.00399209,2920.7,2920.0,0.01339346]
[1644710135727,0.00399209,2920.7,2920.2,0.00388016]
[1644710135971,0.00399209,2920.7,2920.0,0.01339346]
[1644710135972,0.00728962,2920.1,2920.0,0.01339346]
[1644710137176,5.86541769,2920.3,2920.0,0.01339346]
[1644710137177,5.82270731,2920.3,2920.0,0.01339346]
[1644710137575,3.57445541,2920.2,2920.0,9.346e-05]
[1644710137777,5.1711,2920.1,2920.0,9.346e-05]
[1644710137977,9.14846004,2920.1,2920.0,9.346e-05]
[1644710138176,4.14846004,2920.1,2920.0,9.346e-05]
[1644710138976,3.97736004,2920.1,2920.0,9.346e-05]
[1644710139176,0.495,2920.2,2920.0,9.346e-05]
[1644710139376,0.445,2920.2,2920.0,9.346e-05]
[1644710139633,0.00400205,2920.4,2920.0,9.346e-05]
[1644710139821,0.17510205,2920.4,2920.0,9.346e-05]
[1644710140022,1.15881995,2920.2,2920.0,9.346e-05]
[1644710140223,0.1711,2920.1,2920.0,9.346e-05]
[1644710140424,0.1711,2920.1,2919.8,0.01223177]
[1644710140628,0.17510205,2920.1,2920.0,0.01019395]
[1644710140827,1.15881995,2920.2,2920.0,0.01019395]
[1644710141625,1.15881995,2920.2,2919.8,0.01223177]
[1644710141825,1.15881995,2920.2,2920.0,0.01019395]
[1644710142630,0.00099104,2920.1,2920.0,0.01019395]
[1644710142831,0.00099104,2920.1,2919.8,0.01223177]
[1644710143031,1.10981099,2920.2,2920.0,0.01019395]
[1644710143232,0.00400205,2920.4,2920.0,0.01019395]
[1644710143480,4.19084831,2920.7,2920.0,0.01019395]
[1644710143481,0.00400205,2920.6,2920.0,0.01019395]
[1644710143679,0.49900205,2920.6,2920.0,0.01019395]
[1644710143880,1.4573458,2920.5,2919.8,0.01223177]
[1644710144084,0.00400205,2920.8,2920.1,0.1711]
[1644710144280,1.46732689,2920.7,2920.1,0.01019403]
[1644710144479,0.01019188,2920.7,2920.1,0.01019403]
[1644710144685,1.4572166,2920.6,2920.1,0.01019403]
[1644710144881,1.4572166,2920.6,2919.7,0.7712]
[1644710145081,1.4572166,2920.6,2919.8,0.85594]
[1644710145082,0.00400205,2920.5,2919.8,0.85594]
[1644710145481,0.00400205,2921.0,2919.7,0.34329129]
[1644710145681,1.45717536,2920.9,2919.7,0.34329129]
[1644710145882,0.00400205,2920.8,2919.7,0.34329129]
[1644710146083,2.34851722,2920.7,2919.7,0.34329129]
[1644710146282,0.89134186,2920.7,2919.7,0.34329129]
[1644710146484,0.00400205,2920.6,2919.7,0.64329129]
[1644710146786,0.00400205,2921.0,2919.7,0.64329129]
[1644710146983,1.45711932,2920.9,2919.7,0.64329129]
[1644710147225,0.00400205,2920.8,2919.8,0.85594]
[1644710147428,0.00400205,2920.8,2919.9,0.69466551]
[1644710147625,0.00400205,2920.8,2919.9,1.48966551]
[1644710147826,1.45710144,2920.7,2920.0,0.00387758]
[1644710148125,0.90035739,2921.0,2920.1,0.1711]
[1644710148526,1.79875334,2921.2,2920.1,0.1711]
[1644710148725,0.59575334,2921.2,2920.1,0.1711]
[1644710148930,0.59575334,2921.2,2920.0,0.1711]
[1644710149124,0.00995595,2920.7,2920.2,0.85584]
[1644710149330,0.00995595,2920.7,2920.3,0.63319997]
[1644710149525,0.00995595,2920.7,2920.3,0.78759997]
[1644710149725,0.03981781,2921.1,2920.9,1.40040145]
[1644710149927,0.01506283,2921.9,2920.9,1.40040145]
[1644710149928,0.01506283,2921.9,2921.0,3.995]
[1644710150127,0.01506283,2921.9,2921.1,6.185]
[1644710150328,0.01506283,2921.9,2921.2,0.495]
[1644710150528,0.01506283,2921.9,2921.4,1.71067]
[1644710150726,2.10359411,2922.4,2921.5,1.18966551]
[1644710150973,50.0,2922.5,2921.6,0.132]
[1644710151174,50.0,2922.5,2921.7,0.6661]
[1644710151175,0.04149492,2922.4,2921.7,0.6661]
[1644710151373,0.04149492,2922.4,2921.8,0.495]
[1644710151573,50.0,2922.5,2921.8,3.09618173]
[1644710151574,0.04092649,2922.3,2921.8,3.09618173]
[1644710151774,0.04092649,2922.3,2921.9,1.02636]
[1644710151976,0.04035807,2922.2,2922.0,0.495]
[1644710152176,0.04035807,2922.2,2922.1,0.1711]
[1644710152377,0.04035807,2922.2,2922.1,0.7941]
[1644710152577,49.99035807,2922.5,2922.1,1.53099349]
[1644710152779,49.99035807,2922.5,2922.2,0.171]
[1644710152979,49.99035807,2922.5,2922.3,0.495]
[1644710153479,1.93858199,2923.3,2922.5,0.85507]
[1644710153480,0.171,2923.3,2922.5,0.85507]
[1644710153678,0.0175226,2923.6,2922.6,0.666]
[1644710153880,0.0172602,2923.9,2922.8,1.9]
[1644710153881,0.12020536,2923.7,2922.8,1.9]
[1644710154079,0.08542256,2923.7,2923.1,6.185]
[1644710154278,0.0172602,2923.9,2923.3,1.9]
[1644710154482,0.0031,2924.0,2923.4,0.495]
[1644710154722,0.0031,2924.0,2923.7,1.7094]
[1644710154928,0.0031,2924.0,2923.5,0.1312]
[1644710155124,2.32901483,2923.6,2923.3,0.1304]
[1644710155322,2.32901483,2923.6,2923.3,0.1328]
[1644710155522,2.32901483,2923.6,2923.3,0.132]
[1644710155724,2.32901483,2923.6,2923.3,0.1408]
[1644710155923,2.32901483,2923.6,2923.3,1.00294]
[1644710156123,2.32901483,2923.6,2923.4,0.1448]
[1644710156323,2.32901483,2923.6,2923.4,0.1432]
[1644710156524,2.32901483,2923.6,2923.4,0.1464]
[1644710156726,2.32901483,2923.6,2923.4,0.1432]
[1644710156923,2.32901483,2923.6,2923.4,0.1464]
[1644710157131,2.32901483,2923.6,2923.4,0.1304]
[1644710157325,2.32901483,2923.6,2923.4,0.0040478]
[1644710157529,2.33027802,2923.6,2923.4,0.0040478]
[1644710158232,2.33027802,2923.6,2923.4,0.1336478]
[1644710158468,2.33027802,2923.6,2923.3,0.1328]
[1644710158669,2.33027802,2923.6,2923.4,0.01018232]
[1644710158869,2.33027802,2923.6,2923.4,0.13818232]
[1644710159068,2.33027802,2923.6,2923.4,0.01018232]
[1644710159270,1.17829124,2923.5,2923.4,0.01018232]
[1644710159474,2.33027802,2923.6,2923.4,0.01018232]
[1644710159674,2.33027802,2923.6,2923.2,2.20471]
[1644710159869,2.33027802,2923.6,2923.4,0.00995074]
[1644710160469,2.33027802,2923.6,2923.4,0.14995074]
[1644710160670,2.33027802,2923.6,2923.3,0.1448]
[1644710160869,2.33027802,2923.6,2923.3,0.128]
[1644710161069,2.33027802,2923.6,2923.4,0.00995074]
[1644710161872,3.97069225,2923.5,2921.9,0.3294]
[1644710162125,3.79969225,2923.5,2922.2,0.1312]
[1644710162326,3.79969225,2923.5,2923.4,0.00995074]
[1644710162524,3.80069941,2923.5,2923.4,5.074e-05]
[1644710162725,1.9,2923.4,2922.1,0.03981947]
[1644710162923,10.40069941,2923.5,2922.1,0.03981947]
[1644710162925,5.0,2922.6,2922.1,0.03981947]
[1644710163125,5.0,2922.6,2921.6,0.25]
[1644710163126,3.89609317,2922.5,2921.6,0.25]
[1644710163323,4.06719317,2922.5,2921.0,0.1296]
[1644710163525,4.06719317,2922.5,2920.5,0.495]
[1644710163723,4.06719317,2922.5,2920.7,0.8557]
[1644710163724,1.09701521,2921.6,2920.7,0.8557]
[1644710163923,0.00400578,2921.5,2920.8,0.1711]
[1644710164122,0.00400578,2921.5,2920.8,0.3207]
[1644710164323,0.00400578,2921.5,2920.9,0.144]
[1644710164624,0.00400578,2921.5,2921.0,0.1711]
[1644710164827,1.09701521,2921.6,2921.0,0.3087]
[1644710165025,0.1711,2922.1,2921.1,0.1376]
[1644710165226,0.00400578,2922.0,2921.1,0.1368]
[1644710165626,4.2419014,2922.1,2921.0,0.1711]
[1644710165878,0.00400578,2922.0,2921.0,0.1711]
[1644710166079,0.94653776,2921.4,2921.0,0.1711]
[1644710166679,0.94653776,2921.4,2920.8,0.1711]
[1644710167084,0.94653776,2921.4,2921.1,0.0101855]
[1644710167884,0.94653776,2921.4,2920.8,0.1711]
[1644710168286,0.94653776,2921.4,2921.1,0.01018543]
[1644710169086,0.1711,2921.9,2921.1,0.01018543]
[1644710169287,0.00400596,2921.8,2920.8,0.1448]
[1644710169486,0.17510596,2922.0,2921.1,0.01018543]
[1644710169727,0.00400596,2922.0,2921.1,0.01018543]
[1644710170231,1.15414661,2921.5,2921.1,0.01018543]
[1644710170427,1.15414661,2921.5,2921.0,0.85559]
[1644710170628,0.00400596,2921.4,2921.0,0.03827227]
[1644710170827,0.00400596,2922.0,2921.0,0.16787227]
[1644710171029,0.00400596,2922.0,2921.1,0.128]
[1644710171329,0.00400596,2922.1,2921.1,0.1536]
[1644710171526,0.00400596,2922.1,2921.0,0.03827227]
[1644710171527,0.00400596,2922.1,2921.2,0.144]
[1644710171729,0.00400596,2922.1,2920.9,0.495]
[1644710171730,0.00400596,2922.1,2920.9,0.663]
[1644710171929,1.14614174,2922.0,2921.2,0.1528]
[1644710172127,1.14614174,2922.0,2921.4,0.00956663]
[1644710172128,0.00400596,2921.9,2921.4,0.00956663]
[1644710172332,1.14614174,2922.0,2921.4,0.00956663]
[1644710172531,0.00094959,2921.8,2921.4,0.00956663]
[1644710172733,0.00094959,2921.8,2921.2,0.3143]
[1644710172932,0.00094959,2921.8,2921.2,0.3127]
[1644710173232,0.00094959,2921.8,2921.6,0.00956643]
[1644710174069,0.00094959,2921.8,2921.4,0.1344]
[1644710174070,0.00094959,2921.8,2921.4,0.136]
[1644710174269,0.00094959,2921.8,2921.6,0.00958974]
[1644710174871,0.00094959,2921.8,2921.6,1.36002974]
[1644710175276,0.00094959,2921.8,2921.7,0.1528]
[1644710175471,0.00094959,2921.8,2921.7,0.6398]
[1644710175671,0.00094959,2921.8,2921.7,0.6438]
[1644710175873,0.00094959,2921.8,2921.7,0.643]
[1644710176071,0.00094959,2921.8,2921.7,0.639]
[1644710176272,0.00094959,2921.8,2921.7,0.6334]
[1644710176472,0.00094959,2921.8,2921.7,0.6302]
[1644710176674,0.00094959,2921.8,2921.7,0.6342]
[1644710176976,0.00094959,2921.8,2921.7,0.6414]
[1644710177233,0.00094959,2921.8,2921.7,0.6406]
[1644710177434,0.00094959,2921.8,2921.7,0.6422]
[1644710177633,0.94379476,2922.3,2921.7,0.6374]
[1644710177833,0.94379476,2922.3,2921.7,0.6326]
[1644710178032,0.00958446,2922.2,2921.8,0.132]
[1644710178332,0.00958446,2922.2,2921.8,0.1328]
[1644710178533,0.00958446,2922.2,2921.8,0.1336]
[1644710178731,0.94379476,2922.3,2921.8,0.136]
[1644710178932,3.60016996,2922.8,2921.8,0.1392]
[1644710179135,0.00958494,2922.2,2921.9,0.00958622]
[1644710179933,3.60361633,2922.8,2921.9,0.1328]
[1644710180132,1.01767789,2922.5,2921.8,0.1336]
[1644710180337,1.01767789,2922.5,2921.9,0.00958615]
[1644710180338,0.00958503,2922.2,2921.9,0.00958615]
[1644710181272,1.01767789,2922.5,2921.7,0.1376]
[1644710181472,0.00966767,2922.2,2921.9,0.0096688]
[1644710182276,0.00966767,2922.2,2921.9,0.1408688]
[1644710182479,0.00400806,2922.4,2921.7,0.1711]
[1644710182480,0.00400806,2922.4,2921.8,0.136]
[1644710182676,0.00966767,2922.2,2921.9,0.0096688]
[1644710183678,0.00400806,2922.4,2921.7,0.1344]
[1644710183878,0.00966767,2922.2,2921.9,0.0096688]
[1644710184739,0.00966767,2922.2,2921.6,0.99224]
[1644710184924,1.06919203,2922.0,2921.6,0.99144]
[1644710185125,1.06919203,2922.0,2921.3,1.88199]
[1644710185126,1.06919203,2922.0,2921.9,0.00955767]
[1644710185324,1.06919203,2922.0,2921.3,2.18199]
[1644710185325,0.01911534,2921.8,2921.4,0.136]
[1644710185530,3.82152875,2921.8,2921.3,0.1711]
[1644710186728,3.99262875,2921.8,2921.3,0.1711]
[1644710186925,3.99262875,2921.8,2920.9,0.136903]
[1644710187126,3.31040806,2921.7,2920.9,0.136903]
[1644710187329,4.15205147,2921.6,2920.9,0.136903]
[1644710187729,0.97989174,2921.5,2920.9,0.136903]
[1644710187928,3.78566176,2921.4,2920.9,0.136903]
[1644710188975,0.9838998,2921.5,2920.9,0.136903]
[1644710189176,5.0,2921.2,2920.1,0.1711]
[1644710189377,5.0,2921.2,2920.0,0.1711]
[1644710189378,0.1711,2921.1,2920.0,0.1711]
[1644710189676,0.1711,2921.1,2919.7,0.25]
[1644710189677,4.46575712,2921.1,2919.7,0.25]
[1644710189875,1.45676309,2921.0,2920.5,0.01017471]
[1644710190075,5.0,2920.8,2920.5,0.01017471]
[1644710190276,0.1711,2920.7,2920.5,0.01017471]
[1644710190575,0.1711,2920.8,2920.5,0.01017471]
[1644710190778,0.1711,2920.8,2919.7,0.25]
[1644710190977,0.92713791,2920.1,2919.8,0.14]
[1644710191176,1.22360806,2921.3,2920.0,0.04070522]
[1644710191876,1.62775229,2921.2,2920.1,0.1711]
[1644710192134,1.62775229,2921.2,2919.5,0.25]
[1644710192135,0.1711,2921.2,2919.6,0.1456]
[1644710192331,0.1711,2921.2,2920.5,0.01017471]
[1644710192529,1.09581281,2921.1,2920.5,0.01017471]
[1644710192730,0.1711,2921.0,2920.5,0.01017471]
[1644710193129,0.1711,2921.0,2919.8,1.02702]
[1644710193334,1.1560749,2920.2,2919.9,0.1368]
[1644710193531,6.2196,2921.3,2919.9,0.1352]
[1644710193532,0.1711,2921.2,2919.9,0.1352]
[1644710193730,0.1711,2921.2,2919.9,0.136]
[1644710193931,0.1711,2921.2,2919.9,0.1328]
[1644710194130,0.1711,2921.2,2919.9,0.1312]
[1644710194634,0.96736897,2920.3,2920.0,0.0407055]
[1644710194832,0.96736897,2920.3,2920.0,0.1703055]
[1644710195032,0.96736897,2920.3,2920.0,0.1695055]
[1644710195233,0.96736897,2920.3,2920.0,0.0407055]
[1644710195631,0.96736897,2920.3,2919.7,0.1344]
[1644710195876,0.96736897,2920.3,2919.7,0.136]
[1644710196074,0.96736897,2920.3,2920.0,0.0101754]
[1644710196679,6.26736897,2920.3,2920.0,0.0101754]
[1644710196880,1.9,2920.0,2918.7,3.5]
[1644710197080,5.0,2919.8,2918.2,3.75]
[1644710197282,0.1711,2919.7,2918.2,3.75]
[1644710197682,0.1711,2919.7,2918.2,0.25]
[1644710197981,1.1976,2920.1,2918.6,0.85627]
[1644710197982,4.7297,2920.1,2918.6,0.85627]
[1644710198183,4.7297,2920.1,2918.8,0.00399882]
[1644710198781,3.5321,2920.1,2918.8,0.00399882]
[1644710198982,1.11413542,2919.5,2918.8,0.00399882]
[1644710199182,1.11413542,2919.5,2919.0,1.71216]
[1644710199383,1.11413542,2919.5,2919.0,2.31216]
[1644710199640,3.5321,2920.1,2919.3,0.00399814]
[1644710199835,1.2494,2920.5,2919.4,0.1711]
[1644710200032,3.2437,2920.6,2919.5,0.495]
[1644710200231,3.2437,2920.6,2919.6,3.58008474]
[1644710200434,3.2437,2920.6,2919.7,0.495]
[1644710200631,3.2437,2920.6,2919.8,0.495]
[1644710200632,1.05682255,2920.2,2919.8,0.495]
[1644710200832,1.05682255,2920.2,2919.9,0.01017034]
[1644710201036,1.05682255,2920.2,2919.9,0.50517034]
[1644710201231,1.05682255,2920.2,2919.9,0.01017034]
[1644710201632,1.05682255,2920.2,2919.6,3.69953718]
[1644710201832,3.2437,2920.6,2919.6,3.69953718]
[1644710201833,3.2437,2920.6,2919.9,1.35089]
[1644710202032,3.2437,2920.6,2919.9,0.86606034]
[1644710202236,3.2437,2920.6,2920.0,0.1344]
[1644710202436,3.2437,2920.6,2920.0,0.1328]
[1644710202635,3.2437,2920.6,2920.0,0.1296]
[1644710202837,1.17845194,2920.1,2919.9,1.65089]
[1644710203036,1.17845194,2920.1,2919.9,1.66106087]
[1644710203478,3.2437,2920.6,2919.9,1.66106087]
[1644710203678,3.2437,2920.6,2920.0,0.3039]
[1644710203876,3.2437,2920.6,2920.0,0.3007]
[1644710204077,3.2437,2920.6,2920.0,0.3015]
[1644710204276,3.2437,2920.6,2920.0,0.1711]
[1644710204477,1.14529637,2920.5,2920.0,0.7941]
[1644710204679,1.14529637,2920.5,2920.0,0.6246]
[1644710204876,1.14529637,2920.5,2920.0,0.6238]
[1644710205277,1.14529637,2920.5,2920.0,1.48047]
[1644710205478,1.14529637,2920.5,2920.0,1.48207]
[1644710205677,1.14529637,2920.5,2920.0,0.627]
[1644710205877,1.14529637,2920.5,2920.0,0.6254]
[1644710206081,1.14529637,2920.5,2920.0,0.495]
[1644710206280,1.14529637,2920.5,2919.9,0.01017076]
[1644710206477,1.14529637,2920.5,2919.8,0.132]
[1644710206678,1.14529637,2920.5,2919.9,0.01017076]
[1644710207135,1.13879548,2920.0,2919.9,0.01017076]
[1644710207730,1.13879548,2920.0,2919.7,0.132]
[1644710207930,1.13879548,2920.0,2919.8,0.0101703]
[1644710208937,1.13879548,2920.0,2919.5,0.1352]
[1644710209232,1.13879548,2920.0,2919.3,0.495]
[1644710209233,1.13879548,2920.0,2919.8,0.00951533]
[1644710210031,1.13879548,2920.0,2919.5,0.856]
[1644710210234,1.13879548,2920.0,2919.5,1.5984]
[1644710210534,1.13879548,2920.0,2919.8,0.00951533]
[1644710211176,1.13879548,2920.0,2919.6,0.1336]
[1644710211379,1.13879548,2920.0,2919.6,0.1384]
[1644710211580,1.13879548,2920.0,2919.8,0.00951533]
[1644710211977,0.17208732,2920.5,2919.8,0.00951533]
[1644710212379,0.17208732,2920.5,2919.6,0.1368]
[1644710212580,0.00096696,2919.9,2919.6,0.1368]
[1644710212778,0.00096696,2919.9,2919.6,0.136]
[1644710212979,0.00096696,2919.9,2919.6,0.132]
[1644710213179,0.00096696,2919.9,2919.3,3.6661]
[1644710213180,0.00096696,2919.9,2919.3,3.0]
[1644710213980,0.00096696,2919.9,2919.5,0.00955975]
[1644710214380,0.94491509,2919.8,2919.5,0.00955975]
[1644710214929,0.94491509,2919.8,2919.3,3.0]
[1644710215129,0.94491509,2919.8,2919.5,0.00955968]
[1644710216130,0.94491509,2919.8,2919.3,3.0]
[1644710216332,0.94491509,2919.8,2919.5,0.00955968]
[1644710217335,0.94491509,2919.8,2919.3,3.0]
[1644710217536,0.94469464,2919.8,2919.5,0.00955674]
[1644710218381,0.94469464,2919.8,2919.3,3.0]
[1644710218579,0.94469464,2919.8,2919.5,0.00955674]
[1644710219582,0.94469464,2919.8,2919.3,3.0]
[1644710219782,0.94469464,2919.8,2919.5,0.00955674]
[1644710220782,0.94469464,2919.8,2919.3,3.0]
[1644710221184,0.94469464,2919.8,2919.5,0.00955694]
[1644710221585,3.42954393,2919.7,2919.5,0.00955694]
[1644710221785,0.94469464,2919.8,2919.5,0.00955694]
[1644710222138,0.94469464,2919.8,2919.3,3.0]
[1644710222341,3.47715327,2919.7,2919.5,0.009557]
[1644710222544,0.94469464,2919.8,2919.5,0.009557]
[1644710222940,3.4411541,2919.7,2919.5,0.009557]
[1644710223141,3.48342232,2919.7,2919.3,3.0]
[1644710223542,3.5386253,2919.7,2919.5,0.00955694]
[1644710223744,0.94469464,2919.8,2919.5,0.00955694]
[1644710224044,3.44277929,2919.7,2919.5,0.00955694]
[1644710224444,3.44277929,2919.7,2919.3,3.0]
[1644710224846,3.44277929,2919.7,2919.5,0.00955699]
[1644710225647,3.44277929,2919.7,2919.3,3.0]
[1644710225877,3.44277929,2919.7,2919.5,0.00955699]
[1644710226077,0.94469464,2919.8,2919.5,0.00955699]
[1644710226477,3.42860755,2919.7,2919.5,0.00955699]
[1644710226683,0.94469464,2919.8,2919.5,0.00955699]
[1644710226983,0.94469464,2919.8,2919.3,3.0]
[1644710226984,3.61316466,2919.7,2919.3,3.0]
[1644710227186,3.61316466,2919.7,2919.5,0.00955699]
[1644710227383,3.61316466,2919.7,2919.5,5.699e-05]
[1644710227585,0.00074301,2919.4,2919.3,3.0]
[1644710227783,3.77677524,2919.4,2919.0,0.03823371]
[1644710227985,3.77677524,2919.4,2918.8,0.25]
[1644710228185,3.77677524,2919.4,2918.0,0.38819997]
[1644710228383,0.98213532,2918.1,2918.0,0.38819997]
[1644710228583,3.87698126,2919.2,2918.0,0.13819997]
[1644710229183,3.87698126,2919.2,2917.8,0.13819997]
[1644710229483,1.13277999,2918.1,2917.8,0.13819997]
[1644710229742,1.13277999,2918.1,2917.6,0.52616885]
[1644710229943,5.07528126,2919.2,2917.6,0.52616885]
[1644710231443,1.07738812,2918.3,2917.6,0.52616885]
[1644710231843,1.07738812,2918.3,2917.8,0.04069578]
[1644710232845,5.07528126,2919.2,2917.6,0.52616885]
[1644710233047,5.07528126,2919.2,2917.9,0.0101729]
[1644710233245,5.07528126,2919.2,2918.0,0.1713]
[1644710233880,0.89645725,2918.4,2918.0,0.1713]
[1644710234081,0.89645725,2918.4,2917.7,0.1713]
[1644710234283,0.89645725,2918.4,2918.0,0.04069469]
[1644710234887,5.24658126,2919.2,2918.0,0.04069469]
[1644710235285,5.24658126,2919.2,2917.7,0.1713]
[1644710235585,5.24658126,2919.2,2918.5,0.01017215]
[1644710235986,1.03141837,2919.1,2918.5,0.01017215]
[1644710236187,3.97576045,2919.0,2918.5,0.01017215]
[1644710236387,3.97576045,2919.0,2917.9,0.25]
[1644710236588,1.05808265,2918.2,2917.7,0.1713]
[1644710236790,1.05808265,2918.2,2917.5,0.1713]
[1644710237635,1.05808265,2918.2,2917.1,0.25]
[1644710237636,3.5,2918.1,2917.1,0.25]
[1644710237935,3.6713,2918.4,2917.7,0.01017317]
[1644710238136,3.2893,2918.3,2917.7,0.01017317]
[1644710238335,0.1713,2918.2,2917.7,0.01017317]
[1644710238735,0.1713,2918.2,2917.3,0.04069878]
[1644710238736,0.1713,2918.2,2917.3,0.00087195]
[1644710238936,0.1713,2918.2,2917.0,0.25]
[1644710238937,1.17336804,2917.3,2917.0,0.25]
[1644710239135,1.17336804,2917.3,2916.8,0.1713]
[1644710239733,1.17336804,2917.3,2916.8,0.2993]
[1644710239938,1.17336804,2917.3,2916.8,0.1713]
[1644710240334,1.17336804,2917.3,2916.9,0.00395618]
[1644710241186,1.17336804,2917.3,2916.8,0.1713]
[1644710241589,1.17336804,2917.3,2917.0,0.00395611]
[1644710242395,1.17336804,2917.3,2916.8,0.1713]
[1644710242792,1.17336804,2917.3,2917.0,0.00395605]
[1644710243091,0.1713,2918.1,2917.0,0.00395605]
[1644710243292,3.5,2918.2,2917.0,0.00395605]
[1644710243592,3.5,2918.2,2916.8,0.1713]
[1644710243791,0.01017951,2917.7,2917.2,0.01018157]
[1644710244835,0.1713,2918.1,2916.7,1.73322994]
[1644710245036,0.01017971,2917.6,2917.2,0.01018125]
[1644710245258,0.95742623,2917.4,2917.2,0.01018125]
[1644710246135,0.95742623,2917.4,2916.7,2.41827949]
[1644710246335,0.01017991,2917.4,2917.2,0.01018093]
[1644710247336,0.89889142,2917.6,2916.7,2.11827949]
[1644710247536,0.01017991,2917.4,2917.2,0.01018093]
[1644710248378,0.01017991,2917.4,2916.8,0.1713]
[1644710248379,0.89889142,2917.6,2916.8,0.1713]
[1644710248785,0.01017991,2917.4,2917.2,0.01018093]
[1644710249586,0.89889142,2917.6,2916.8,0.1713]
[1644710249986,0.01017991,2917.4,2917.2,0.01018093]
[1644710250889,0.1713,2918.2,2916.8,0.1713]
[1644710251089,0.01017991,2917.4,2917.2,0.01018093]
[1644710252151,3.62150325,2918.2,2917.1,1.19012426]
[1644710252152,0.1713,2918.2,2917.1,1.19012426]
[1644710252343,3.2893,2918.3,2917.2,0.01018093]
[1644710252344,0.01017991,2917.4,2917.2,0.01018093]
[1644710252542,0.01017991,2917.4,2917.2,0.82288093]
[1644710252743,0.01017991,2917.4,2917.2,0.99577222]
[1644710252943,0.01017991,2917.4,2917.3,0.30729129]
[1644710253143,0.01017991,2917.4,2917.3,0.30809129]
[1644710253345,3.2893,2918.3,2917.7,1.08899584]
[1644710253544,3.2893,2918.3,2917.7,0.495]
[1644710254743,0.01017897,2918.1,2917.7,0.495]
[1644710255743,3.2893,2918.3,2917.7,0.495]
[1644710255993,0.0101791,2918.0,2917.7,0.495]
[1644710256398,0.0101791,2918.0,2917.7,4.42607369]
[1644710256597,0.0101791,2918.0,2917.8,0.1384]
[1644710256797,0.1713,2918.7,2917.9,0.495]
[1644710256998,0.1713,2918.7,2917.9,0.6366]
[1644710257197,0.01017917,2918.0,2917.9,0.795]
[1644710257399,0.01017917,2918.0,2917.9,1.095]
[1644710257597,0.01017917,2918.0,2917.9,1.2374]
[1644710257797,0.01017917,2918.0,2917.9,1.2382]
[1644710257998,0.1713,2918.7,2917.9,1.239]
[1644710258201,0.1713,2918.7,2918.2,1.18864738]
[1644710258402,0.1713,2918.7,2918.3,0.495]
[1644710258900,1.18797145,2919.2,2918.3,0.495]
[1644710259301,1.08797145,2919.2,2918.3,0.495]
[1644710259502,0.00623148,2918.9,2918.3,0.495]
[1644710260538,1.08797145,2919.2,2918.3,0.495]
[1644710260740,0.00623148,2918.7,2918.3,0.495]
[1644710260937,0.00623148,2918.7,2918.3,1.35135]
[1644710261349,0.00623148,2918.7,2918.4,0.1368]
[1644710261541,0.1713,2919.7,2918.5,2.395]
[1644710261740,0.1713,2919.7,2918.6,0.3]
[1644710261941,1.03808062,2919.5,2918.7,1.56581465]
[1644710262142,1.03808062,2919.5,2918.8,0.8561]
[1644710262340,1.03808062,2919.5,2918.9,0.495]
[1644710263140,0.00623148,2919.3,2918.9,0.495]
[1644710263988,0.00623148,2919.3,2918.5,0.495]
[1644710263989,0.93494975,2919.0,2918.5,0.495]
[1644710264387,0.00623148,2919.2,2918.5,0.495]
[1644710265387,1.02219841,2919.2,2918.5,0.495]
[1644710265589,0.01017249,2919.0,2918.5,0.495]
[1644710266591,1.02219841,2919.2,2918.5,0.495]
[1644710266990,0.01017263,2918.9,2918.5,0.495]
[1644710267839,1.02219841,2919.2,2918.5,0.495]
[1644710268138,0.01017269,2918.8,2918.5,0.495]
[1644710268940,1.02219841,2919.2,2918.5,0.495]
[1644710269141,0.01017259,2918.8,2918.5,0.495]
[1644710269740,0.01017259,2918.8,2918.3,1.32765]
[1644710269941,0.01017259,2918.8,2918.3,1.62771]
[1644710270140,3.80632506,2919.6,2918.3,1.49891]
[1644710270344,0.01017237,2918.8,2918.3,1.62931]
[1644710270542,0.01017237,2918.8,2918.3,1.62851]
[1644710270742,0.01017237,2918.8,2918.3,1.63171]
[1644710270992,0.01017237,2918.8,2918.3,2.48716]
[1644710271190,0.01017237,2918.8,2918.3,2.48476]
[1644710271390,3.84856293,2919.6,2918.3,2.48556]
[1644710271595,0.01017237,2918.8,2918.3,2.35516]
[1644710271896,0.01017237,2918.8,2918.3,2.48396]
[1644710272091,0.01017237,2918.8,2918.3,2.35516]
[1644710272293,0.01017237,2918.8,2918.3,2.1839]
[1644710272492,0.94624146,2919.2,2918.3,1.32765]
[1644710272696,0.01017237,2918.8,2918.3,1.32765]
[1644710273095,0.01017237,2918.8,2918.3,0.4713]
[1644710273294,0.01017237,2918.8,2918.3,0.1713]
[1644710273693,0.94624146,2919.2,2918.3,0.1713]
[1644710274093,0.01017237,2918.8,2918.3,0.84910078]
[1644710274294,0.01017237,2918.8,2918.3,1.70550078]
[1644710274938,0.94624146,2919.2,2918.3,1.70550078]
[1644710275233,0.01017237,2918.8,2918.3,1.70550078]
[1644710276134,0.94624146,2919.2,2918.3,1.70550078]
[1644710276336,0.01017237,2918.8,2918.3,1.70550078]
[1644710276834,0.01017237,2918.8,2918.3,0.8564]